lending/lending_fUSD_20251111
["ID","MTS","AMOUNT","RATE_DAILY","PERIOD"]
[393610866,1762851067294,-160.75292,0.000394,120]
[393610867,1762851067303,-409.186765,0.000394,120]
[393610868,1762851067312,-409.186765,0.000394,120]
[393610869,1762851067322,-23.02558489,0.000394,120]
[393610870,1762851067337,-386.16118011,0.000394,120]
[393610871,1762851067347,-160.75292,0.0003956,120]
[393610872,1762851067357,-409.186765,0.0003956,120]
[393610873,1762851067366,-281.0485781,0.0003956,120]
[393610874,1762851067377,-128.1381869,0.0003956,120]
[393610875,1762851067387,-409.186765,0.0003956,120]
[393610876,1762851067398,-661.35511796,0.00039642,2]
[393610877,1762851067410,-527.64488204,0.00039642,2]
[393610878,1762851067420,-123.94191582,0.00039665,2]
[393610879,1762851067431,-1504.86811097,0.00039665,2]
[393610880,1762851067442,-113.66274623,0.00039665,2]
[393610881,1762851067451,-160.75292,0.00039765,120]
[393610882,1762851067460,-160.75292,0.00039765,120]
[393610883,1762851067471,-160.75292,0.00039765,120]
[393610884,1762851067480,-409.186765,0.00039765,120]
[393610885,1762851067489,-409.186765,0.00039765,120]
[393610886,1762851067499,-160.75292983,0.00039765,120]
[393610887,1762851067508,-4.81026716,0.00039765,120]
[393610888,1762851067519,-404.37649784,0.00039765,120]
[393610889,1762851067528,-409.186765,0.00039765,120]
[393610890,1762851067537,-39.46607623,0.00039765,120]
[393610891,1762851067548,-369.72068877,0.00039765,120]
[393610892,1762851067558,-409.186765,0.00039765,120]
[393610893,1762851067568,-41.34015472,0.00039765,120]
[393610894,1762851067580,-367.84661028,0.00039765,120]
[393610895,1762851067589,-228.63068968,0.00039765,120]
[393610896,1762851067602,-180.55607532,0.00039765,120]
[393610897,1762851067612,-215.21443348,0.00039765,7]
[393610898,1762851068137,1178.50205662,0.00016507,120]
[393610899,1762851068249,195.0,0.00016507,120]
[393610900,1762851068309,195.0,0.00015722,120]
[393610901,1762851130067,210.87021997,0.00014906,2]
[393610907,1762851445365,210.87021997,0.00014905,2]
[393610919,1762851634248,-247.66978851,0.00015004,2]
[393610920,1762851634356,-52.33021149,0.00015004,2]
[393610921,1762851634382,-158.02366097,0.00015004,2]
[393610922,1762851634545,-255.08231605,0.00015004,2]
[393610923,1762851634681,-786.89402298,0.00015004,2]
[393610924,1762851634706,-300.0,0.00015004,2]
[393610925,1762851634737,-300.0,0.00015004,2]
[393610926,1762851634763,-1200.0,0.00015005,2]
[393610927,1762851634790,-500.0,0.00015005,2]
[393610928,1762851634816,-470.50859545,0.00015005,2]
[393610930,1762851688486,-29.49140455,0.00015005,2]
[393610931,1762851688511,-449.18001025,0.00015005,2]
[393610932,1762851691721,-50.81998975,0.00015005,2]
[393610933,1762851691744,-359.02105529,0.00015005,2]
[393610934,1762851691767,-0.91461318,0.00015005,2]
[393610948,1762851793399,-299.90521247,0.00015005,2]
[393610949,1762851793428,-62.82774531,0.00015005,2]
[393610950,1762851798278,-151.0,0.00015005,2]
[393610951,1762851799820,-184.17143953,0.00015005,2]
[393610977,1762852146779,184.17143953,0.0001493,2]
[393610992,1762852232023,-1190.48855636,0.00015005,2]
[393610994,1762852232033,-493.79646135,0.00015005,2]
[393610995,1762852232043,-154.02530482,0.00015005,2]
[393610996,1762852232052,-300.0,0.00015005,2]
[393610997,1762852232062,-300.0,0.00015005,2]
[393610998,1762852232071,-250.0,0.00015005,2]
[393610999,1762852232080,-91.66476114,0.00015005,2]
[393611000,1762852232096,-208.33523886,0.00015005,2]
[393611001,1762852232105,-78.98866493,0.00015005,2]
[393611002,1762852232133,-337.74137243,0.00015005,2]
[393611003,1762852232145,-250.0,0.00015005,2]
[393611004,1762852232155,-500.0,0.00015006,2]
[393611005,1762852232165,-406.57787883,0.00015006,2]
[393611006,1762852232174,-500.0,0.00015006,2]
[393611007,1762852232183,-523.74606699,0.00015006,2]
[393611008,1762852232193,-502.05865157,0.00015006,2]
[393611009,1762852232202,-500.0,0.00015006,2]
[393611010,1762852232211,-500.0,0.00015006,2]
[393611011,1762852232220,-501.0,0.00015006,2]
[393611012,1762852232229,-420.0,0.00016422,2]
[393611013,1762852232238,-500.0,0.00016438,2]
[393611014,1762852232248,-250.0,0.00016506,2]
[393611015,1762852232257,-300.0,0.00016506,2]
[393611016,1762852232266,-300.0,0.00016506,2]
[393611017,1762852232275,-300.0,0.00016506,2]
[393611018,1762852232285,-300.0,0.00016506,2]
[393611019,1762852232294,-336.9232829,0.00016506,2]
[393611020,1762852232303,-300.0,0.00016506,2]
[393611021,1762852232312,-550.0,0.00016911,2]
[393611022,1762852232321,-151.0,0.00016912,2]
[393611023,1762852232330,-151.0,0.00016912,2]
[393611024,1762852232339,-151.0,0.00016912,2]
[393611025,1762852232348,-151.0,0.00016912,2]
[393611026,1762852232357,-151.0,0.00016912,2]
[393611027,1762852232367,-151.0,0.00016912,2]
[393611028,1762852232376,-151.0,0.00016912,2]
[393611029,1762852232385,-151.0,0.00016912,2]
[393611030,1762852232396,-151.0,0.00016912,2]
[393611032,1762852232406,-151.0,0.00016912,2]
[393611033,1762852232414,-151.0,0.00016912,2]
[393611034,1762852232423,-151.0,0.00016912,2]
[393611035,1762852232433,-151.0,0.00016912,2]
[393611036,1762852232442,-151.0,0.00016912,2]
[393611037,1762852232450,-151.0,0.00016912,2]
[393611038,1762852232460,-151.0,0.00016912,2]
[393611039,1762852232470,-151.0,0.00016912,2]
[393611040,1762852232479,-151.0,0.00016912,2]
[393611041,1762852232488,-151.0,0.00016912,2]
[393611042,1762852232497,-151.0,0.00016912,2]
[393611043,1762852232506,-500.0,0.00016921,2]
[393611044,1762852232516,-500.0,0.00016921,2]
[393611045,1762852232526,-327.83994235,0.00016921,2]
[393611046,1762852232536,-500.0,0.00016921,2]
[393611047,1762852232545,-537.43871703,0.00016921,2]
[393611048,1762852232554,-500.0,0.00016921,2]
[393611049,1762852232562,-500.0,0.00016921,2]
[393611050,1762852232571,-500.0,0.00016921,2]
[393611051,1762852232580,-500.0,0.00016921,2]
[393611052,1762852232590,-563.3,0.00016921,2]
[393611053,1762852232599,-500.0,0.00016921,2]
[393611054,1762852232608,-500.0,0.00016921,2]
[393611055,1762852232617,-500.0,0.00016921,2]
[393611056,1762852232629,-500.0,0.00016921,2]
[393611057,1762852232641,-500.0,0.00016921,2]
[393611058,1762852232652,-500.0,0.00016921,2]
[393611059,1762852232661,-500.0,0.00016921,2]
[393611060,1762852232672,-500.0,0.00016921,2]
[393611061,1762852232681,-500.0,0.00016921,2]
[393611062,1762852232691,-500.0,0.00016921,2]
[393611063,1762852232700,-500.0,0.00016921,2]
[393611064,1762852232710,-688.27,0.00016921,2]
[393611065,1762852232721,-830.75,0.00016922,2]
[393611066,1762852232730,-3440.9,0.00016922,2]
[393611067,1762852232739,-9999.99,0.00016922,2]
[393611068,1762852232748,-499.99,0.00016922,2]
[393611069,1762852232758,-150.99,0.00016922,2]
[393611070,1762852232768,-821.56,0.00016922,2]
[393611071,1762852232778,-9999.99,0.00016922,2]
[393611072,1762852232788,-9999.99,0.00016922,2]
[393611073,1762852232797,-1512.19,0.00016922,2]
[393611074,1762852232807,-2761.1,0.00016922,2]
[393611075,1762852232817,-150.99,0.00016922,2]
[393611076,1762852232826,-3066.26,0.00016922,2]
[393611077,1762852232836,-3785.61,0.00016922,2]
[393611078,1762852232845,-500.0,0.00016973,2]
[393611079,1762852232855,-688.27,0.00017195,2]
[393611080,1762852232865,-962.44247225,0.00017199,2]
[393611081,1762852232875,-500.0,0.00017243,2]
[393611082,1762852232885,-688.27,0.00017469,2]
[393611083,1762852232897,-1000.0,0.00017521,2]
[393611084,1762852232908,-151.0,0.00017717,2]
[393611085,1762852232918,-151.0,0.00017717,2]
[393611086,1762852232927,-151.0,0.00017717,2]
[393611087,1762852232937,-688.27,0.00017743,2]
[393611088,1762852232947,-889.21155154,0.00017791,2]
[393611089,1762852232957,-587.0,0.00017973,2]
[393611090,1762852232966,-688.27,0.00018017,2]
[393611091,1762852232976,-1500.0,0.00018068,2]
[393611092,1762852232986,-688.29610184,0.00018291,2]
[393611093,1762852232995,-2000.0,0.00018616,2]
[393611094,1762852233004,-364.23750904,0.00019164,2]
[393611095,1762852233014,-500.0,0.00019178,2]
[393611096,1762852233023,-500.0,0.00019178,2]
[393611097,1762852233032,-823.0,0.0001967,2]
[393611098,1762852233042,-478.44322026,0.00020668,2]
[393611099,1762852233052,-92190.0,0.00021,7]
[393611100,1762852233061,-581.0,0.00021528,2]
[393611101,1762852233072,-8238.03761891,0.00022027,2]
[393611102,1762852233082,-1000.0,0.000263,2]
[393611103,1762852233091,-178.016763,0.00027514,3]
[393611104,1762852233100,-172.34781,0.00027514,3]
[393611105,1762852233110,-234.246988,0.00027514,3]
[393611106,1762852233119,-236.0,0.0003,120]
[393611107,1762852233129,-500.0,0.0003,2]
[393611108,1762852233140,-574.000875,0.00030362,2]
[393611109,1762852233154,-150.0,0.000305,30]
[393611110,1762852233166,-200.0,0.00032,120]
[393611111,1762852233177,-3256.68,0.00032593,33]
[393611112,1762852233187,-290.8,0.00032593,33]
[393611113,1762852233198,-2041.92,0.00032682,2]
[393611114,1762852233208,-1096.45974581,0.00032812,2]
[393611115,1762852233218,-277.16,0.000331,60]
[393611116,1762852233228,-5000.0,0.00033176,2]
[393611117,1762852233238,-224.51,0.00033391,2]
[393611118,1762852233247,-200.0,0.00034,120]
[393611119,1762852233256,-1000.0,0.00034025,2]
[393611120,1762852233266,-574.000875,0.00034203,2]
[393611121,1762852233276,-706.72744796,0.00034345,2]
[393611122,1762852233285,-150.0,0.00034376,2]
[393611123,1762852233295,-150.0,0.00034376,120]
[393611124,1762852233306,-500.0,0.0003455,7]
[393611125,1762852233315,-236.15498697,0.0003455,7]
[393611126,1762852233325,-186.03986255,0.0003455,7]
[393611127,1762852233335,-296.54168091,0.0003455,7]
[393611128,1762852233344,-2143.0,0.00034551,2]
[393611129,1762852233353,-2751.0,0.0003515,120]
[393611130,1762852233363,-1408.03155104,0.0003597,2]
[393611131,1762852233374,-164.0,0.00036,30]
[393611132,1762852233383,-150.0,0.00036487,2]
[393611133,1762852233393,-3106.696,0.0003665,2]
[393611134,1762852233404,-617.74778625,0.00036654,2]
[393611135,1762852233414,-724.51900857,0.0003682,2]
[393611136,1762852233424,-831.29023088,0.00036987,2]
[393611137,1762852233434,-938.0614532,0.00037153,2]
[393611138,1762852233444,-186.29272794,0.000372,120]
[393611139,1762852233454,-1044.83267551,0.0003732,2]
[393611140,1762852233464,-1151.60389783,0.00037486,2]
[393611141,1762852233473,-2143.0,0.00037551,2]
[393611142,1762852233483,-1258.37512014,0.00037652,2]
[393611143,1762852233492,-4422.0,0.00037768,2]
[393611144,1762852233502,-1365.14634246,0.00037819,2]
[393611145,1762852233511,-408.0,0.00037866,2]
[393611146,1762852233521,-408.0,0.00037871,2]
[393611147,1762852233531,-408.0,0.00037976,2]
[393611148,1762852233540,-1471.91756477,0.00037985,2]
[393611149,1762852233550,-168.58,0.00037995,2]
[393611150,1762852233559,-200.0,0.00038,120]
[393611151,1762852233569,-408.0,0.00038013,7]
[393611152,1762852233578,-574.000875,0.00038043,2]
[393611153,1762852233587,-408.0,0.00038058,7]
[393611154,1762852233597,-479.0,0.00038082,7]
[393611155,1762852233606,-500.0,0.00038121,7]
[393611156,1762852233615,-500.0,0.00038121,7]
[393611157,1762852233625,-408.0,0.00038135,2]
[393611158,1762852233638,-1578.68878709,0.00038152,2]
[393611159,1762852233648,-408.0,0.00038239,2]
[393611160,1762852233657,-408.0,0.00038295,7]
[393611161,1762852233667,-1685.4600094,0.00038318,2]
[393611162,1762852233677,-500.0,0.00038356,2]
[393611163,1762852233686,-1792.23123172,0.00038485,2]
[393611164,1762852233695,-408.0,0.00038542,120]
[393611165,1762852233705,-1899.00245404,0.00038651,2]
[393611166,1762852233717,-409.0,0.00038717,120]
[393611167,1762852233727,-1991.54551023,0.000388,120]
[393611168,1762852233736,-2005.77367635,0.00038818,2]
[393611169,1762852233746,-2112.54489867,0.00038984,2]
[393611170,1762852233755,-5550.33054494,0.00039,2]
[393611171,1762852233765,-150.0,0.00039133,41]
[393611172,1762852233774,-150.0,0.00039133,2]
[393611173,1762852233784,-150.0,0.00039133,41]
[393611174,1762852233794,-150.0,0.00039133,41]
[393611175,1762852233804,-150.0,0.00039133,41]
[393611176,1762852233813,-202.19828309,0.00039133,41]
[393611177,1762852233823,-500.0,0.00039133,41]
[393611178,1762852233833,-200.0,0.00039133,41]
[393611179,1762852233842,-150.0,0.00039133,41]
[393611180,1762852233852,-2219.31612098,0.00039151,2]
[393611181,1762852233862,-1000.0,0.000392,7]
[393611182,1762852233871,-1000.0,0.000392,7]
[393611183,1762852233880,-150.0,0.0003927,41]
[393611184,1762852233890,-150.0,0.0003927,41]
[393611185,1762852233901,-150.72638159,0.0003927,41]
[393611186,1762852233910,-500.0,0.0003927,41]
[393611187,1762852233920,-257.13508711,0.0003927,41]
[393611188,1762852233930,-662.8021949,0.0003927,2]
[393611189,1762852233940,-1000.0,0.0003927,2]
[393611190,1762852233949,-2500.0,0.00039277,14]
[393611191,1762852233959,-2326.0873433,0.00039317,2]
[393611192,1762852233968,-500.0,0.0003937,2]
[393611193,1762852233978,-500.0,0.0003937,2]
[393611194,1762852233988,-1000.0,0.0003937,2]
[393611195,1762852233997,-491.85145446,0.00039378,14]
[393611196,1762852234006,-262.72460208,0.00039392,95]
[393611197,1762852234016,-200.0,0.00039407,41]
[393611198,1762852234025,-200.0,0.00039407,41]
[393611199,1762852234035,-500.0,0.00039407,41]
[393611200,1762852234044,-200.0,0.00039408,20]
[393611201,1762852234053,-1000.0,0.0003945,2]
[393611202,1762852234063,-500.0,0.0003947,2]
[393611203,1762852234072,-1000.0,0.0003947,2]
[393611204,1762852234082,-500.0,0.0003947,2]
[393611205,1762852234103,-1000.0,0.0003947,2]
[393611206,1762852234112,-2432.85856561,0.00039484,2]
[393611207,1762852234122,-4528.28954215,0.0003954,2]
[393611208,1762852234132,-500.0,0.00039544,41]
[393611209,1762852234142,-494.84715696,0.0003955,30]
[393611210,1762852234152,-225.02878745,0.0003955,15]
[393611211,1762852234162,-475.73340998,0.0003955,11]
[393611212,1762852234171,-2500.0,0.0003955,2]
[393611213,1762852234181,-4528.28954215,0.00039552,2]
[393611214,1762852234190,-475.73340988,0.00039557,11]
[393611215,1762852234201,-4528.28954215,0.00039564,2]
[393611216,1762852234210,-475.73340988,0.00039564,11]
[393611217,1762852234219,-2001.2928,0.00039566,3]
[393611218,1762852234229,-2000.0,0.00039566,3]
[393611219,1762852234238,-475.73340988,0.00039571,11]
[393611220,1762852234248,-4528.28954215,0.00039576,2]
[393611221,1762852234257,-475.73340988,0.00039579,11]
[393611222,1762852234267,-4528.28954215,0.00039588,2]
[393611223,1762852234276,-4528.28954215,0.00039599,2]
[393611224,1762852234286,-5769.22854429,0.000396,90]
[393611225,1762852234295,-500.0,0.00039606,2]
[393611226,1762852234305,-4528.28954215,0.00039611,2]
[393611227,1762852234316,-4528.28954215,0.00039623,2]
[393611228,1762852234325,-2040.0913,0.00039632,120]
[393611229,1762852234335,-4528.28954215,0.00039635,2]
[393611230,1762852234344,-21211.1398651,0.00039637,4]
[393611231,1762852234354,-10605.5699326,0.0003964,4]
[393611232,1762852234364,-524.7988684,0.00039646,30]
[393611233,1762852234373,-443.73507614,0.00039646,120]
[393611234,1762852234382,-500.0,0.00039646,120]
[393611235,1762852234392,-157.54260659,0.00039646,120]
[393611236,1762852234403,-500.0,0.00039646,7]
[393611237,1762852234412,-263.19217509,0.00039646,120]
[393611238,1762852234421,-188.41194953,0.00039647,2]
[393611239,1762852234430,-4528.28954215,0.00039647,2]
[393611240,1762852234439,-5000.0,0.00039647,30]
[393611241,1762852234452,-2539.62978793,0.0003965,2]
[393611242,1762852234462,-195995.72586522,0.0003965,4]
[393611243,1762852234479,-16115.67278578,0.0003965,4]
[393611244,1762852234488,-39067.36498737,0.0003965,4]
[393611245,1762852234499,-45194.37460346,0.0003965,4]
[393611246,1762852234511,-22664.49174717,0.0003965,4]
[393611247,1762852234520,-1006.23375086,0.0003965,8]
[393611248,1762852234529,-500.0,0.00039651,7]
[393611249,1762852234539,-136828.28208657,0.0003966,2]
[393611250,1762852234553,-999.0,0.0003966,2]
[393611251,1762852234565,-2315.06711676,0.0003966,2]
[393611254,1762852238025,-154.02530482,0.00017717,2]
[393611255,1762852238036,-246.89823067,0.00030362,2]
[393611256,1762852238046,-475.73340988,0.00039586,11]
[393611257,1762852238057,-837.13498736,0.0003965,2]
[393611258,1762852238133,-4671.09434839,0.0003965,2]
[393611259,1762852238192,-19966.29463592,0.0003965,2]
[393611260,1762852238202,-210.29217208,0.0003966,2]
[393611261,1762852238214,-279647.35862459,0.0003966,2]
[393611262,1762852238228,-10605.5699326,0.0003966,4]
[393611263,1762852238238,-1819.3794,0.00039662,2]
[393611264,1762852238248,-1000.0,0.00039662,2]
[393611265,1762852238263,-11880.6923708,0.00039668,4]
[393611266,1762852238273,-500.0,0.0003967,2]
[393611267,1762852238283,-1000.0,0.0003967,2]
[393611268,1762852238293,-500.0,0.0003967,2]
[393611270,1762852238303,-500.0,0.0003967,2]
[393611272,1762852238313,-1000.0,0.0003967,2]
[393611274,1762852238323,-1000.0,0.0003967,2]
[393611276,1762852238334,-600.0,0.00039678,14]
[393611278,1762852238343,-600.0,0.00039678,14]
[393611279,1762852238354,-600.0,0.00039678,14]
[393611281,1762852238364,-600.0,0.00039678,14]
[393611282,1762852238374,-600.0,0.00039678,14]
[393611283,1762852238384,-600.0,0.00039678,14]
[393611284,1762852238395,-600.0,0.00039678,14]
[393611285,1762852238406,-600.0,0.00039678,14]
[393611286,1762852238420,-600.0,0.00039678,14]
[393611287,1762852238430,-600.0,0.00039678,14]
[393611288,1762852238441,-500.0,0.00039681,41]
[393611289,1762852238451,-247.0,0.00039686,120]
[393611290,1762852238462,-500.0,0.00039726,5]
[393611291,1762852238473,-150.15,0.00039727,2]
[393611292,1762852238483,-10605.5699326,0.00039737,4]
[393611293,1762852238493,-10605.5699326,0.00039737,4]
[393611294,1762852238504,-71284.154225,0.00039737,4]
[393611295,1762852238514,-150.0,0.0003974,2]
[393611296,1762852238524,-12356.31841221,0.0003974,2]
[393611297,1762852238535,-150.0,0.00039746,20]
[393611298,1762852238545,-3446.0,0.00039747,5]
[393611299,1762852238555,-151.0,0.00039747,14]
[393611300,1762852238565,-192.541576,0.00039747,120]
[393611301,1762852238575,-151.0,0.00039747,120]
[393611302,1762852238586,-151.0,0.00039747,120]
[393611303,1762852238595,-151.0,0.00039747,120]
[393611304,1762852238605,-296.039985,0.00039747,120]
[393611305,1762852238615,-151.0,0.00039747,120]
[393611306,1762852238631,-151.0,0.00039747,120]
[393611307,1762852238642,-151.0,0.00039747,120]
[393611308,1762852238654,-151.0,0.00039747,120]
[393611309,1762852238664,-151.0,0.00039747,120]
[393611310,1762852238675,-151.0,0.00039747,120]
[393611311,1762852238686,-153.470548,0.00039747,120]
[393611312,1762852238696,-151.0,0.00039747,120]
[393611313,1762852238707,-152.698772,0.00039747,120]
[393611314,1762852238717,-151.0,0.00039747,120]
[393611315,1762852238727,-151.0,0.00039747,120]
[393611316,1762852238738,-151.0,0.00039747,120]
[393611317,1762852238748,-151.0,0.00039747,120]
[393611318,1762852238757,-151.0,0.00039747,120]
[393611319,1762852238767,-151.0,0.00039747,120]
[393611320,1762852238777,-229.219419,0.00039747,120]
[393611321,1762852238787,-151.0,0.00039747,120]
[393611322,1762852238798,-152.824271,0.00039747,120]
[393611323,1762852238807,-151.0,0.00039747,120]
[393611324,1762852238819,-151.0,0.00039747,120]
[393611325,1762852238830,-151.0,0.00039747,120]
[393611326,1762852238840,-151.0,0.00039747,120]
[393611327,1762852238849,-151.0,0.00039747,120]
[393611328,1762852238859,-206.079187,0.00039747,120]
[393611329,1762852238870,-151.0,0.00039747,120]
[393611330,1762852238880,-157.842751,0.00039747,120]
[393611331,1762852238890,-151.0,0.00039747,120]
[393611332,1762852238900,-153.208999,0.00039747,120]
[393611333,1762852238909,-151.0,0.00039747,120]
[393611334,1762852238920,-151.0,0.00039747,120]
[393611335,1762852238930,-151.0,0.00039747,120]
[393611336,1762852238943,-151.0,0.00039747,120]
[393611337,1762852238953,-151.0,0.00039747,120]
[393611338,1762852238963,-151.0,0.00039747,120]
[393611339,1762852238973,-151.0,0.00039747,120]
[393611340,1762852238983,-151.0,0.00039747,120]
[393611341,1762852238994,-151.0,0.00039747,120]
[393611342,1762852239003,-151.0,0.00039747,120]
[393611343,1762852239012,-151.0,0.00039747,120]
[393611344,1762852239022,-151.0,0.00039747,120]
[393611345,1762852239031,-151.0,0.00039747,120]
[393611346,1762852239040,-151.0,0.00039747,120]
[393611347,1762852239050,-151.0,0.00039747,120]
[393611348,1762852239059,-151.0,0.00039747,120]
[393611349,1762852239069,-194.579445,0.00039747,120]
[393611350,1762852239080,-151.0,0.00039747,120]
[393611351,1762852239090,-156.139867,0.00039747,120]
[393611352,1762852239099,-151.0,0.00039747,120]
[393611353,1762852239109,-151.0,0.00039747,120]
[393611354,1762852239119,-151.0,0.00039747,120]
[393611355,1762852239129,-151.0,0.00039747,120]
[393611356,1762852239139,-245.775424,0.00039747,120]
[393611357,1762852239150,-151.0,0.00039747,30]
[393611358,1762852239160,-156.350601,0.00039747,30]
[393611359,1762852239169,-195.220456,0.00039747,120]
[393611360,1762852239179,-151.0,0.00039747,120]
[393611361,1762852239189,-154.892027,0.00039747,120]
[393611362,1762852239205,-151.0,0.00039747,120]
[393611363,1762852239219,-151.0,0.00039747,120]
[393611364,1762852239229,-151.0,0.00039747,120]
[393611365,1762852239444,-151.0,0.00039747,120]
[393611366,1762852239457,-151.0,0.00039747,120]
[393611367,1762852239467,-202.675517,0.00039747,120]
[393611368,1762852239477,-151.0,0.00039747,120]
[393611369,1762852239487,-157.855366,0.00039747,120]
[393611370,1762852239497,-151.0,0.00039747,14]
[393611371,1762852239506,-151.0,0.00039747,14]
[393611372,1762852239520,-151.0,0.00039747,14]
[393611373,1762852239529,-151.0,0.00039747,14]
[393611374,1762852239539,-151.0,0.00039747,120]
[393611375,1762852239549,-151.0,0.00039747,14]
[393611376,1762852239559,-151.0,0.00039747,120]
[393611377,1762852239569,-151.0,0.00039747,14]
[393611378,1762852239579,-151.0,0.00039747,120]
[393611379,1762852239588,-151.0,0.00039747,120]
[393611380,1762852239598,-151.0,0.00039747,14]
[393611381,1762852239609,-151.0,0.00039747,120]
[393611382,1762852239619,-219.969981,0.00039747,120]
[393611383,1762852239629,-151.0,0.00039747,14]
[393611384,1762852239643,-151.0,0.00039747,14]
[393611385,1762852239654,-151.0,0.00039747,14]
[393611386,1762852239664,-153.145943,0.00039747,14]
[393611387,1762852239675,-151.0,0.00039747,120]
[393611388,1762852239685,-153.123438,0.00039747,120]
[393611389,1762852239695,-173.110584,0.00039747,120]
[393611390,1762852239704,-151.0,0.00039747,120]
[393611391,1762852239717,-151.0,0.00039747,120]
[393611392,1762852239728,-151.0,0.00039747,120]
[393611393,1762852239738,-151.0,0.00039747,120]
[393611394,1762852239747,-182.9434,0.00039747,120]
[393611395,1762852239760,-151.0,0.00039747,120]
[393611396,1762852239770,-151.0,0.00039747,120]
[393611397,1762852239780,-164.4422,0.00039747,120]
[393611398,1762852239790,-151.0,0.00039747,120]
[393611399,1762852239800,-151.0,0.00039747,120]
[393611400,1762852239810,-151.0,0.00039747,120]
[393611401,1762852239819,-151.0,0.00039747,120]
[393611402,1762852239829,-266.888997,0.00039747,120]
[393611403,1762852239839,-151.0,0.00039747,120]
[393611404,1762852239849,-151.0,0.00039747,120]
[393611405,1762852239858,-151.0,0.00039747,120]
[393611406,1762852239868,-151.0,0.00039747,120]
[393611407,1762852239878,-151.0,0.00039747,120]
[393611408,1762852239888,-151.0,0.00039747,120]
[393611409,1762852239897,-151.0,0.00039747,120]
[393611410,1762852239912,-151.0,0.00039747,120]
[393611411,1762852239922,-181.584598,0.00039747,120]
[393611412,1762852239932,-151.0,0.00039747,120]
[393611413,1762852239942,-163.839362,0.00039747,120]
[393611414,1762852239952,-230.64018831,0.00039747,120]
[393611415,1762852239962,-188.305182,0.00039747,120]
[393611416,1762852239972,-188.305182,0.00039747,120]
[393611417,1762852239981,-188.305182,0.00039747,120]
[393611418,1762852239991,-188.305182,0.00039747,120]
[393611419,1762852240001,-188.305182,0.00039747,120]
[393611420,1762852240011,-188.305182,0.00039747,120]
[393611421,1762852240021,-188.305182,0.00039747,120]
[393611422,1762852240030,-188.305182,0.00039747,120]
[393611423,1762852240040,-188.305182,0.00039747,120]
[393611424,1762852240050,-188.305182,0.00039747,120]
[393611425,1762852240060,-188.305182,0.00039747,120]
[393611426,1762852240069,-188.305182,0.00039747,120]
[393611427,1762852240079,-151.0,0.00039747,120]
[393611428,1762852240089,-188.305182,0.00039747,120]
[393611429,1762852240098,-151.0,0.00039747,120]
[393611430,1762852240107,-188.305182,0.00039747,120]
[393611431,1762852240116,-151.0,0.00039747,120]
[393611433,1762852240126,-188.305182,0.00039747,120]
[393611434,1762852240135,-151.0,0.00039747,120]
[393611435,1762852240145,-188.305182,0.00039747,120]
[393611436,1762852240155,-151.0,0.00039747,120]
[393611437,1762852240164,-188.305182,0.00039747,120]
[393611438,1762852240174,-152.782305,0.00039747,120]
[393611439,1762852240184,-151.987592,0.00039747,120]
[393611440,1762852240194,-188.305182,0.00039747,120]
[393611441,1762852240203,-188.305182,0.00039747,120]
[393611442,1762852240213,-188.305179,0.00039747,120]
[393611443,1762852240223,-151.0,0.00039747,120]
[393611444,1762852240232,-151.616994,0.00039747,120]
[393611445,1762852240241,-151.0,0.00039747,120]